bitfinex-derivatives/quotes_BTCF0:USTF0_20210708
["timestamp","ask_amount","ask_price","bid_price","bid_amount"]
[1625746210775,0.24057544,32515.0,32511.0,0.24057544]
[1625746210925,0.24057544,32515.0,32507.0,1.79886026]
[1625746211076,0.24057544,32515.0,32506.0,1.79920447]
[1625746211376,0.24057544,32515.0,32505.0,2.03982934]
[1625746212428,0.48115088,32506.0,32505.0,2.03982934]
[1625746212576,0.83127088,32506.0,32505.0,2.03982934]
[1625746219268,0.83127088,32506.0,32505.0,0.24057544]
[1625746219563,0.83127088,32506.0,32505.0,2.04280334]
[1625746220614,0.83127088,32506.0,32505.0,0.24057544]
[1625746223691,0.83127088,32506.0,32500.0,2.04326782]
[1625746223842,0.83127088,32506.0,32501.0,1.80346823]
[1625746223992,0.83127088,32506.0,32500.0,2.04411155]
[1625746224592,0.24057544,32501.0,32500.0,2.04411155]
[1625746224743,0.24057544,32501.0,32500.0,0.24057544]
[1625746225793,0.24057544,32501.0,32500.0,2.0447266]
[1625746226092,0.24057544,32501.0,32500.0,0.24057544]
[1625746226543,0.48115088,32501.0,32500.0,0.24057544]
[1625746231196,0.48115088,32501.0,32498.0,1.80487083]
[1625746231347,0.48115088,32501.0,32497.0,1.8049008]
[1625746232399,0.48115088,32501.0,32498.0,1.8060021]
[1625746232550,0.24057544,32499.0,32498.0,1.8060021]
[1625746232701,0.50503544,32499.0,32498.0,1.8060021]
[1625746233451,0.50503544,32499.0,32494.0,0.24057544]
[1625746233452,0.50503544,32499.0,32497.0,1.80556012]
[1625746233750,0.50503544,32499.0,32498.0,1.8066191]
[1625746234352,0.62359398,32512.0,32498.0,1.8066191]
[1625746234560,0.62359398,32512.0,32498.0,2.0673391]
[1625746234663,0.9474,32514.0,32511.0,0.72172632]
[1625746234825,0.08931238,32516.0,32511.0,1.03356632]
[1625746235113,1.8869,32530.0,32511.0,1.03356632]
[1625746235114,0.86589508,32521.0,32513.0,1.6258125]
[1625746235406,0.86589508,32521.0,32511.0,1.03356632]
[1625746235407,0.24057544,32521.0,32517.0,1.62566287]
[1625746235554,0.24057544,32524.0,32519.0,1.62553373]
[1625746235702,0.24057544,32524.0,32519.0,1.92785373]
[1625746236010,0.13567544,32524.0,32521.0,1.62556187]
[1625746236152,0.24057544,32527.0,32521.0,1.62556187]
[1625746236611,0.24057544,32527.0,32526.0,0.48115088]
[1625746236752,0.24057544,32527.0,32526.0,0.70123088]
[1625746240278,0.24057544,32527.0,32526.0,0.48115088]
[1625746243205,0.46046544,32527.0,32526.0,0.48115088]
[1625746243659,1.08460122,32527.0,32526.0,0.48115088]
[1625746243810,1.08460122,32527.0,32525.0,4.9766]
[1625746243958,1.35159403,32527.0,32525.0,4.9766]
[1625746244109,0.62399239,32526.0,32517.0,1.62535874]
[1625746244560,0.08918331,32523.0,32515.0,1.62544453]
[1625746244710,0.48115088,32518.0,32517.0,0.24057544]
[1625746244858,0.78883088,32518.0,32517.0,0.24057544]
[1625746254696,0.78883088,32518.0,32511.0,0.48115088]
[1625746254847,0.78883088,32518.0,32510.0,1.62563646]
[1625746255298,0.26661646,32517.0,32508.0,1.86634408]
[1625746255477,0.0889005,32516.0,32508.0,0.24057544]
[1625746255749,0.26661164,32517.0,32508.0,1.86644407]
[1625746255898,0.62171456,32517.0,32508.0,1.86644407]
[1625746256202,0.26648385,32516.0,32508.0,0.24057544]
[1625746256802,0.48115088,32509.0,32508.0,0.24057544]
[1625746256950,0.74627088,32509.0,32508.0,0.24057544]
[1625746257551,0.74627088,32509.0,32508.0,1.86678621]
[1625746262361,0.48115088,32509.0,32508.0,1.86678621]
[1625746264012,0.24057544,32509.0,32508.0,1.86678621]
[1625746264496,0.24057544,32509.0,32508.0,3.67490063]
[1625746273106,0.48115088,32518.0,32508.0,3.67490063]
[1625746273409,0.48115088,32518.0,32517.0,1.62725792]
[1625746273558,0.48115088,32518.0,32517.0,3.32493516]
[1625746274908,0.48115088,32518.0,32517.0,3.80608604]
[1625746276787,0.48115088,32518.0,32517.0,1.93825268]
[1625746276936,0.48115088,32518.0,32517.0,1.69767724]
[1625746277161,0.48115088,32518.0,32517.0,3.32486034]
[1625746278213,0.48115088,32518.0,32517.0,1.69767724]
[1625746278664,0.48115088,32518.0,32517.0,3.32480118]
[1625746279114,0.48115088,32518.0,32517.0,1.69767724]
[1625746279263,0.48115088,32518.0,32517.0,1.44644724]
[1625746282346,0.57023835,32518.0,32515.0,1.4465462]
[1625746282945,0.24057544,32516.0,32515.0,1.4465462]
[1625746293833,1.13017102,32516.0,32514.0,1.44850384]
[1625746294133,1.24465879,32515.0,32513.0,1.44851348]
[1625746294282,0.53360356,32514.0,32513.0,1.44851348]
[1625746294885,0.774179,32514.0,32513.0,1.44851348]
[1625746295410,0.774179,32514.0,32512.0,1.44840204]
[1625746295709,0.08904856,32513.0,32512.0,1.44840204]
[1625746295863,0.26696298,32513.0,32512.0,1.44840204]
[1625746296610,0.08904856,32513.0,32512.0,1.44840204]
[1625746296910,0.50753634,32513.0,32512.0,1.44840204]
[1625746297287,0.329624,32513.0,32512.0,1.44840204]
[1625746298189,0.24057544,32513.0,32512.0,3.07819795]
[1625746299016,0.24057544,32513.0,32512.0,3.31877339]
[1625746305849,0.32983486,32513.0,32512.0,3.31877339]
[1625746306151,0.86454439,32513.0,32512.0,3.31877339]
[1625746306303,0.77528497,32513.0,32512.0,3.31877339]
[1625746307728,0.86449286,32513.0,32512.0,3.31877339]
[1625746308477,0.50807921,32513.0,32512.0,3.31877339]
[1625746308627,0.24057544,32513.0,32512.0,3.31877339]
[1625746315682,0.46344544,32513.0,32512.0,3.31877339]
[1625746320112,0.55261985,32513.0,32512.0,3.31877339]
[1625746320412,0.46344544,32513.0,32512.0,3.31877339]
[1625746321462,0.24057544,32513.0,32512.0,3.31877339]
[1625746323418,0.24057544,32513.0,32512.0,5.13222817]
[1625746325446,0.08930355,32519.0,32512.0,5.13222817]
[1625746325595,0.59216163,32520.0,32518.0,3.0823012]
[1625746325596,0.6244803,32520.0,32518.0,3.0823012]
[1625746325747,0.6244803,32520.0,32518.0,3.4264812]
[1625746325898,0.2677736,32520.0,32519.0,3.0822855]
[1625746326122,0.08931867,32520.0,32519.0,3.0822855]
[1625746327024,0.62463548,32521.0,32519.0,3.56343638]
[1625746327325,0.62463548,32521.0,32520.0,3.08187598]
[1625746327475,0.08934153,32521.0,32520.0,3.08187598]
[1625746327923,0.26785594,32521.0,32520.0,3.08187598]
[1625746328598,0.08934153,32521.0,32520.0,3.08187598]
[1625746329125,0.26787115,32522.0,32520.0,3.08187598]
[1625746329425,0.62481934,32523.0,32521.0,3.08116385]
[1625746329727,0.08935854,32523.0,32521.0,3.08116385]
[1625746330027,0.08935854,32523.0,32522.0,3.08109215]
[1625746330177,0.86551745,32524.0,32522.0,3.08109215]
[1625746330403,0.86551745,32524.0,32523.0,3.08097449]
[1625746331155,0.86551745,32524.0,32523.0,3.32154993]
[1625746331311,0.50853955,32524.0,32523.0,3.32154993]
[1625746331608,0.3299614,32524.0,32523.0,3.32154993]
[1625746331757,0.5085594,32524.0,32523.0,3.32154993]
[1625746332660,0.3299614,32524.0,32523.0,3.32154993]
[1625746333109,0.24057544,32524.0,32523.0,3.32154993]
[1625746338965,0.24057544,32524.0,32523.0,1.69044579]
[1625746339416,0.50380544,32524.0,32523.0,1.44987035]
[1625746339584,1.12785552,32524.0,32523.0,1.44987035]
[1625746339880,1.03831211,32524.0,32523.0,1.44987035]
[1625746340323,1.03857434,32524.0,32523.0,1.44987035]
[1625746340625,0.59307061,32524.0,32523.0,1.44987035]
[1625746341605,2.81813778,32524.0,32521.0,1.44832267]
[1625746341900,1.24597337,32522.0,32520.0,1.44839288]
[1625746342044,0.53415651,32521.0,32520.0,1.44839288]
[1625746342495,0.88998742,32521.0,32520.0,1.44839288]
[1625746343092,1.3711383,32521.0,32520.0,1.44839288]
[1625746343243,1.3711383,32521.0,32519.0,1.44826224]
[1625746343694,0.533709,32520.0,32518.0,1.4483497]
[1625746343844,0.88931671,32519.0,32517.0,1.44836182]
[1625746344145,0.62278781,32518.0,32517.0,1.44836182]
[1625746344296,0.53371653,32518.0,32517.0,1.44836182]
[1625746345046,0.62280267,32518.0,32517.0,1.44836182]
[1625746345222,0.62343486,32519.0,32517.0,1.44836182]
[1625746345499,0.62343486,32519.0,32518.0,1.4482581]
[1625746345660,0.26731349,32519.0,32518.0,1.4482581]
[1625746346115,0.89045156,32520.0,32518.0,1.4482581]
[1625746346116,0.26761703,32520.0,32518.0,1.4482581]
[1625746346406,1.1053363,32521.0,32519.0,1.44823097]
[1625746346548,1.1053363,32521.0,32520.0,1.44821121]
[1625746347299,0.74881055,32521.0,32520.0,1.44821121]
[1625746348051,0.57043017,32521.0,32520.0,1.44821121]
[1625746348651,0.48115088,32521.0,32520.0,1.44821121]
[1625746349326,0.7479943,32521.0,32520.0,1.44821121]
[1625746349475,1.10359906,32521.0,32520.0,6.11811121]
[1625746350901,1.01459203,32521.0,32520.0,6.11811121]
[1625746351502,0.48115088,32521.0,32520.0,4.6699]
[1625746351666,1.01425762,32521.0,32520.0,4.6699]
[1625746352418,1.36979182,32521.0,32520.0,4.6699]
[1625746352776,1.01455933,32521.0,32520.0,6.11811621]
[1625746353528,1.36993655,32521.0,32520.0,6.11811621]
[1625746353677,1.70576655,32521.0,32520.0,6.11811621]
[1625746353828,1.35023235,32521.0,32520.0,4.6699]
[1625746354069,3.12636403,32521.0,32520.0,4.6699]
[1625746355028,4.36903306,32521.0,32520.0,4.6699]
[1625746355481,5.78844844,32521.0,32520.0,4.6699]
[1625746360814,4.36903306,32521.0,32520.0,4.6699]
[1625746361113,5.78908682,32521.0,32520.0,4.6699]
[1625746361276,4.36903306,32521.0,32520.0,4.6699]
[1625746361787,5.78891581,32521.0,32520.0,4.6699]
[1625746362088,4.36903306,32521.0,32520.0,4.6699]
[1625746366675,2.79053403,32521.0,32520.0,4.6699]
[1625746367720,2.79053403,32521.0,32520.0,4.6849]
[1625746368020,1.10376489,32521.0,32520.0,6.13333874]
[1625746368395,0.74811241,32521.0,32520.0,6.13333874]
[1625746368700,1.10372801,32521.0,32520.0,6.13333874]
[1625746369296,1.10372801,32521.0,32520.0,6.37391418]
[1625746369522,0.5701973,32521.0,32520.0,6.37391418]
[1625746369822,0.74812422,32521.0,32520.0,6.37391418]
[1625746371402,0.5701973,32521.0,32520.0,6.37391418]
[1625746371549,0.48115088,32521.0,32520.0,6.37391418]
[1625746373503,0.48115088,32521.0,32520.0,8.00360469]
[1625746374255,0.48115088,32521.0,32520.0,6.37391418]
[1625746374630,0.57023074,32521.0,32520.0,6.13333874]
[1625746375081,1.10390314,32521.0,32520.0,6.13333874]
[1625746375381,1.01482328,32521.0,32520.0,6.13333874]
[1625746375530,1.10389555,32521.0,32520.0,6.13333874]
[1625746375832,1.01482328,32521.0,32520.0,6.13333874]
[1625746376130,1.10389421,32521.0,32520.0,6.13333874]
[1625746377106,0.74817187,32521.0,32520.0,6.13333874]
[1625746378533,1.10399542,32521.0,32520.0,6.13333874]
[1625746378833,0.74817187,32521.0,32520.0,6.13333874]
[1625746379283,0.57022181,32521.0,32520.0,6.13333874]
[1625746379510,0.74787537,32521.0,32520.0,6.13333874]
[1625746379735,1.10296381,32521.0,32520.0,6.13333874]
[1625746380035,0.74787537,32521.0,32520.0,6.13333874]
[1625746381388,1.10342368,32521.0,32520.0,6.13333874]
[1625746382062,1.01435275,32521.0,32520.0,6.13333874]
[1625746382214,1.1033757,32521.0,32520.0,6.13333874]
[1625746383489,1.01435275,32521.0,32520.0,6.13333874]
[1625746383940,1.36991809,32521.0,32520.0,6.13333874]
[1625746384391,1.54779476,32521.0,32520.0,6.13333874]
[1625746384617,1.01457586,32521.0,32520.0,6.13333874]
[1625746387921,1.01457586,32521.0,32520.0,6.39635874]
[1625746389581,1.37013148,32521.0,32520.0,6.39635874]
[1625746389802,1.54806651,32521.0,32520.0,6.39635874]
[1625746390103,1.37013148,32521.0,32520.0,6.39635874]
[1625746390257,1.01466141,32521.0,32520.0,6.39635874]
[1625746391232,1.37014687,32521.0,32520.0,6.39635874]
[1625746391382,1.54809606,32521.0,32520.0,6.39635874]
[1625746391758,1.01464838,32521.0,32520.0,6.39635874]
[1625746392583,1.10373194,32521.0,32520.0,6.39635874]
[1625746392807,1.01464838,32521.0,32520.0,6.39635874]
[1625746393108,1.10373515,32521.0,32520.0,6.39635874]
[1625746393258,1.01464838,32521.0,32520.0,6.39635874]
[1625746393558,1.10374578,32521.0,32520.0,6.39635874]
[1625746393861,1.01464838,32521.0,32520.0,6.39635874]
[1625746394009,0.08911454,32521.0,32520.0,8.02712802]
[1625746394310,0.26718527,32522.0,32520.0,8.02712802]
[1625746394460,0.08913407,32522.0,32521.0,3.08029688]
[1625746394837,0.62322978,32523.0,32521.0,3.08029688]
[1625746395136,0.62322978,32523.0,32522.0,1.44952276]
[1625746395286,0.53409626,32523.0,32522.0,1.44952276]
[1625746395436,0.53409626,32523.0,32522.0,1.6900982]
[1625746396038,0.26726321,32523.0,32522.0,3.32104734]
[1625746396639,0.62326668,32523.0,32522.0,1.6900982]
[1625746396788,0.26726321,32523.0,32522.0,3.32106153]
[1625746397015,0.08916949,32523.0,32522.0,3.32106153]
[1625746397240,0.86387822,32524.0,32522.0,3.32106153]
[1625746397393,0.86387822,32524.0,32523.0,0.24057544]
[1625746397540,0.86387822,32524.0,32523.0,3.3217138]
[1625746397915,0.7747031,32524.0,32523.0,1.6905229]
[1625746398741,0.86387239,32524.0,32523.0,1.6905229]
[1625746398890,0.86387239,32524.0,32523.0,3.32160634]
[1625746399190,0.50785516,32524.0,32523.0,3.32160634]
[1625746399343,0.86384085,32524.0,32523.0,3.32160634]
[1625746400019,0.32974473,32524.0,32523.0,3.32160634]
[1625746400166,0.08916929,32524.0,32523.0,3.32160634]
[1625746400467,0.26723806,32526.0,32523.0,3.32160634]
[1625746400768,0.26734889,32527.0,32525.0,3.08045875]
[1625746400916,0.26734889,32527.0,32526.0,3.08045657]
[1625746401218,0.89033233,32528.0,32526.0,3.08045657]
[1625746401219,0.26743355,32528.0,32526.0,3.08045657]
[1625746401368,0.26743355,32528.0,32523.0,0.24057544]
[1625746401369,0.26743355,32528.0,32527.0,3.08043937]
[1625746401518,0.26743355,32528.0,32527.0,3.58787481]
[1625746401669,0.08920387,32528.0,32527.0,3.58787481]
[1625746401969,1.59248258,32529.0,32527.0,3.58787481]
[1625746402120,1.59248258,32529.0,32528.0,1.4491304]
[1625746402269,0.62368258,32529.0,32528.0,1.4491304]
[1625746402419,0.26740127,32529.0,32528.0,1.4491304]
[1625746402720,0.86425664,32530.0,32528.0,3.07936743]
[1625746402871,0.50799589,32530.0,32529.0,1.4490706]
[1625746403322,0.24057544,32530.0,32529.0,1.4490706]
[1625746403471,0.24057544,32530.0,32529.0,1.68964604]
[1625746404674,0.62344529,32532.0,32529.0,3.31904894]
[1625746404974,0.08916242,32531.0,32529.0,1.86997834]
[1625746405149,0.08913792,32532.0,32530.0,1.44777202]
[1625746405348,0.2672322,32533.0,32531.0,1.44770543]
[1625746405497,0.2672322,32533.0,32532.0,0.24057544]
[1625746405723,0.08913428,32533.0,32532.0,1.68827427]
[1625746406623,0.86379302,32534.0,32532.0,1.68827427]
[1625746406923,0.50778964,32534.0,32533.0,1.44766187]
[1625746407073,0.24057544,32534.0,32533.0,1.44766187]
[1625746408651,0.32939055,32537.0,32533.0,1.44766187]
[1625746408800,0.24057544,32537.0,32533.0,1.44766187]
[1625746409025,0.86026324,32538.0,32536.0,1.44670715]
[1625746409174,0.6196878,32538.0,32536.0,1.78410715]
[1625746409327,0.61827001,32539.0,32536.0,0.3374]
[1625746409476,0.61827001,32539.0,32538.0,0.48115088]
[1625746409625,0.08842514,32539.0,32538.0,0.48115088]
[1625746410075,0.08848245,32540.0,32538.0,0.48115088]
[1625746411280,0.26510666,32541.0,32538.0,0.48115088]
[1625746411577,0.26510666,32541.0,32538.0,0.81482632]
[1625746411728,0.61725547,32542.0,32538.0,0.81482632]
[1625746412629,0.2645108,32542.0,32538.0,0.81482632]
[1625746413232,0.2645108,32542.0,32529.0,1.32048641]
[1625746413412,0.2645108,32542.0,32527.0,0.1485]
[1625746413413,0.08796228,32538.0,32532.0,1.44411323]
[1625746413563,0.72172632,32533.0,32532.0,1.44411323]
[1625746413706,0.96214632,32533.0,32515.0,2.166307]
[1625746413862,0.057,32532.0,32515.0,2.166307]
[1625746414000,0.26295873,32530.0,32512.0,0.015]
[1625746414141,0.08764519,32527.0,32512.0,0.015]
[1625746414459,0.26276002,32526.0,32512.0,0.015]
[1625746414588,0.08762526,32525.0,32512.0,0.015]
[1625746414887,0.61250465,32525.0,32512.0,0.015]
[1625746415334,0.90540465,32525.0,32512.0,0.015]
[1625746415486,0.08759196,32524.0,32512.0,0.015]
[1625746415635,0.96230176,32513.0,32512.0,0.015]
[1625746415790,0.96230176,32513.0,32509.0,7.0092]
[1625746415791,1.19200176,32513.0,32509.0,7.0092]
[1625746416086,1.19200176,32513.0,32512.0,0.015]
[1625746416236,1.19200176,32513.0,32509.0,7.0092]
[1625746417285,1.19200176,32513.0,32509.0,7.0242]
[1625746417661,1.19200176,32513.0,32504.0,2.16783159]
[1625746417813,1.19200176,32513.0,32503.0,2.16787866]
[1625746418113,1.19200176,32513.0,32501.0,2.16792064]
[1625746418411,1.19200176,32513.0,32502.0,0.00908806]
[1625746418711,1.19200176,32513.0,32502.0,4.6657]
[1625746419535,0.72172632,32503.0,32502.0,4.6657]
[1625746419687,1.01790632,32503.0,32502.0,4.6657]
[1625746419990,1.01790632,32503.0,32498.0,0.27207544]
[1625746421562,0.24057544,32499.0,32498.0,0.27207544]
[1625746423297,0.24057544,32499.0,32498.0,2.07868016]
[1625746424638,0.24057544,32499.0,32498.0,2.04718016]
[1625746425240,0.24057544,32499.0,32498.0,1.80660472]
[1625746425391,0.24057544,32499.0,32498.0,3.43259404]
[1625746428019,0.24057544,32499.0,32498.0,1.62598932]
[1625746429072,0.24057544,32499.0,32497.0,1.62530738]
[1625746429222,0.24057544,32499.0,32496.0,1.62438388]
[1625746429521,0.24057544,32499.0,32494.0,1.62425348]
[1625746429670,0.48115088,32495.0,32494.0,1.62425348]
[1625746429824,0.79040088,32495.0,32494.0,1.62425348]
[1625746431395,0.79040088,32495.0,32493.0,1.62286671]
[1625746431695,0.24057544,32494.0,32493.0,1.62286671]
[1625746432223,0.24057544,32494.0,32492.0,1.62286153]
[1625746432748,0.24057544,32494.0,32491.0,1.62291134]
[1625746432973,0.24057544,32494.0,32489.0,1.62294024]
[1625746433125,0.24057544,32494.0,32487.0,1.62178292]
[1625746433571,0.24057544,32494.0,32485.0,7.1641]
[1625746433572,0.48115088,32488.0,32485.0,8.78574019]
[1625746433722,1.07375632,32488.0,32485.0,8.78574019]
[1625746435222,1.07375632,32488.0,32486.0,1.62162285]
[1625746435374,1.07375632,32488.0,32485.0,8.78420878]
[1625746435679,0.24057544,32486.0,32485.0,7.1641]
[1625746435821,0.24057544,32486.0,32484.0,1.62013744]
[1625746435973,0.24057544,32486.0,32483.0,1.62019052]
[1625746436278,0.24057544,32486.0,32480.0,1.62029048]
[1625746436614,0.24057544,32486.0,32473.0,1.80047713]
[1625746436615,0.24057544,32486.0,32478.0,1.62042942]
[1625746436755,0.74057544,32486.0,32474.0,1.62053573]
[1625746436875,0.24057544,32486.0,32474.0,1.62053573]
[1625746437173,0.24057544,32486.0,32472.0,6.71632242]
[1625746437322,0.24057544,32486.0,32467.0,1.80069158]
[1625746437323,0.24057544,32486.0,32471.0,1.61808498]
[1625746437472,0.0909,32485.0,32471.0,1.61808498]
[1625746437623,0.96230176,32472.0,32469.0,1.61816331]
[1625746437773,1.26968176,32472.0,32468.0,1.61819216]
[1625746438524,1.26968176,32472.0,32467.0,1.61786208]
[1625746438674,1.26968176,32472.0,32466.0,1.61788372]
[1625746438837,1.36248176,32472.0,32466.0,1.61788372]
[1625746439128,1.26968176,32472.0,32466.0,1.61788372]
[1625746439304,1.26968176,32472.0,32463.0,1.6154961]
[1625746439501,1.26968176,32472.0,32462.0,1.6155503]
[1625746439652,0.72172632,32463.0,32459.0,1.61564399]
[1625746439800,0.94659632,32463.0,32459.0,1.61564399]
[1625746440252,0.94659632,32463.0,32458.0,1.61571168]
[1625746440402,0.94659632,32463.0,32457.0,1.61574891]
[1625746440552,0.94659632,32463.0,32458.0,1.61575091]
[1625746440781,0.94659632,32463.0,32457.0,1.61577262]
[1625746441681,0.48115088,32458.0,32457.0,1.61577262]
[1625746442293,0.48115088,32458.0,32450.0,1.80728261]
[1625746443036,0.48115088,32458.0,32450.0,1.79228261]
[1625746443183,0.48115088,32458.0,32449.0,1.79181053]
[1625746443634,0.48115088,32458.0,32452.0,0.24057544]
[1625746443985,0.48115088,32458.0,32452.0,0.51459544]
[1625746444089,0.48115088,32458.0,32452.0,0.54609544]
[1625746446408,0.24057544,32463.0,32452.0,0.54609544]
[1625746447009,0.24057544,32463.0,32452.0,1.54609544]
[1625746447310,0.24057544,32463.0,32453.0,1.0]
[1625746447461,0.24057544,32463.0,32456.0,1.6081122]
[1625746447761,0.24057544,32463.0,32462.0,0.72172632]
[1625746447911,0.24057544,32463.0,32462.0,0.95457632]
[1625746448961,0.24057544,32467.0,32462.0,0.95457632]
[1625746449714,0.24057544,32473.0,32466.0,0.24057544]
[1625746450318,0.057,32481.0,32466.0,0.24057544]
[1625746450466,0.9335,32495.0,32466.0,0.24057544]
[1625746450616,0.9335,32495.0,32466.0,1.74057544]
[1625746450916,0.9335,32495.0,32467.0,1.0]
[1625746451066,0.057,32494.0,32467.0,1.0]
[1625746451366,0.057,32494.0,32468.0,1.0]
[1625746451518,0.9468,32494.0,32493.0,4.6126]
[1625746451669,0.96230176,32494.0,32493.0,4.82859]
[1625746453773,0.72172632,32494.0,32493.0,5.06916544]
[1625746459109,0.24057544,32502.0,32493.0,5.06916544]
[1625746459854,0.24057544,32501.0,32497.0,0.24057544]
[1625746461732,0.24057544,32498.0,32497.0,0.24057544]
[1625746462184,0.56340544,32498.0,32493.0,4.85317544]
[1625746462331,0.56340544,32498.0,32493.0,4.6126]
[1625746463835,0.48115088,32494.0,32493.0,4.6126]
[1625746465563,0.48115088,32494.0,32493.0,3.892]
[1625746468566,0.59044345,32500.0,32493.0,3.892]
[1625746468803,1.1796235,32504.0,32493.0,4.1906]
[1625746468804,0.70674163,32503.0,32493.0,4.1906]
[1625746468908,0.06951057,32503.0,32494.0,0.5]
[1625746469438,0.64954154,32513.0,32499.0,1.0]
[1625746469466,0.2929,32516.0,32500.0,0.5]
[1625746469489,0.59374957,32523.0,32502.0,1.0]
[1625746469512,0.6781593,32525.0,32502.0,1.0]
[1625746469513,0.5094723,32527.0,32503.0,0.5]
[1625746469771,0.509342,32530.0,32506.0,1.0]
[1625746469920,0.50894729,32532.0,32526.0,0.96230176]
[1625746470067,0.50894729,32532.0,32526.0,1.18681176]
[1625746470219,0.50899654,32533.0,32526.0,1.18681176]
[1625746470368,0.16972203,32533.0,32526.0,1.18681176]
[1625746470598,0.50950196,32535.0,32526.0,1.18681176]
[1625746470743,0.50950196,32535.0,32528.0,0.015]
[1625746470895,0.50964753,32536.0,32526.0,1.18681176]
[1625746471220,1.18872485,32537.0,32526.0,1.18681176]
[1625746471221,0.51072282,32537.0,32529.0,0.015]
[1625746471493,0.51055269,32538.0,32529.0,0.015]
[1625746471494,0.5110507,32538.0,32529.0,0.015]
[1625746471793,0.72172632,32530.0,32529.0,0.015]
[1625746472095,0.72172632,32530.0,32526.0,0.24057544]
[1625746472244,0.48115088,32530.0,32529.0,3.9575]
[1625746473830,0.48115088,32530.0,32529.0,4.19807544]
[1625746473972,0.48115088,32530.0,32529.0,2.19647544]
[1625746474572,0.48115088,32530.0,32529.0,1.15107544]
[1625746478850,0.79975997,32534.0,32529.0,1.15107544]
[1625746479301,0.17065314,32534.0,32529.0,1.15107544]
[1625746479452,0.5120281,32535.0,32529.0,1.15107544]
[1625746479604,0.51220539,32536.0,32529.0,1.15107544]
[1625746479902,0.51220539,32536.0,32535.0,0.24057544]
[1625746480503,1.1955726,32536.0,32535.0,0.24057544]
[1625746480969,0.85432095,32536.0,32535.0,0.24057544]
[1625746481332,0.51334559,32537.0,32535.0,0.24057544]
[1625746481630,0.51391712,32539.0,32535.0,0.24057544]
[1625746481931,0.51391712,32539.0,32538.0,0.24057544]
[1625746482381,0.75463122,32540.0,32538.0,0.24057544]
[1625746482533,0.75463122,32540.0,32538.0,0.50406544]
[1625746482683,0.51389321,32539.0,32538.0,0.50406544]
[1625746482984,0.1713548,32539.0,32538.0,0.50406544]
[1625746483808,0.1713548,32539.0,32538.0,0.24057544]
[1625746483960,0.1713548,32539.0,32536.0,0.0015]
[1625746483961,0.6713548,32539.0,32536.0,0.0015]
[1625746484125,0.17118312,32537.0,32536.0,0.0015]
[1625746484263,0.51337834,32537.0,32536.0,0.0015]
[1625746484409,1.19670647,32537.0,32509.0,7.93665879]
[1625746484709,0.17105377,32534.0,32509.0,6.6839]
[1625746484860,0.50283377,32534.0,32509.0,6.6839]
[1625746485010,0.84479812,32534.0,32509.0,6.6839]
[1625746485462,0.33178,32534.0,32509.0,6.6839]
[1625746485614,0.33178,32534.0,32509.0,7.93643212]
[1625746485913,0.33178,32534.0,32533.0,0.24057544]
[1625746486063,0.24057544,32536.0,32533.0,0.24057544]
[1625746489444,0.41150886,32536.0,32533.0,0.24057544]
[1625746489745,0.5127287,32538.0,32533.0,0.24057544]
[1625746489895,0.5127287,32538.0,32537.0,0.24057544]
[1625746490195,0.51308693,32539.0,32537.0,0.24057544]
[1625746490345,0.7539799,32540.0,32537.0,0.24057544]
[1625746490797,0.51358081,32539.0,32537.0,0.24057544]
[1625746491095,1.02689864,32539.0,32537.0,0.24057544]
[1625746491394,0.51358081,32539.0,32537.0,0.24057544]
[1625746491543,0.17125063,32539.0,32537.0,0.24057544]
[1625746491845,0.75391819,32540.0,32537.0,0.24057544]
[1625746491994,0.24057544,32538.0,32537.0,0.24057544]
[1625746492445,0.41166091,32538.0,32537.0,0.24057544]
[1625746492744,0.75358403,32538.0,32537.0,0.24057544]
[1625746493195,0.24057544,32538.0,32537.0,0.24057544]
[1625746496649,0.41152637,32538.0,32537.0,0.24057544]
[1625746496947,0.24057544,32538.0,32537.0,0.24057544]
[1625746497411,0.24057544,32540.0,32537.0,0.24057544]
[1625746497547,0.24057544,32540.0,32537.0,0.50195544]
[1625746498001,0.24057544,32540.0,32539.0,0.24057544]
[1625746498750,1.26765458,32544.0,32539.0,0.24057544]
[1625746498906,0.75414889,32544.0,32539.0,0.24057544]
[1625746499059,0.17133189,32546.0,32539.0,0.24057544]
[1625746499352,0.51415278,32548.0,32541.0,0.015]
[1625746499502,0.51434843,32549.0,32541.0,0.015]
[1625746499801,0.51430825,32550.0,32541.0,0.015]
[1625746499952,0.51430825,32550.0,32549.0,0.72172632]
[1625746500102,0.51430825,32550.0,32549.0,1.02659632]
[1625746501753,0.51430825,32550.0,32549.0,0.72172632]
[1625746501905,0.85702513,32550.0,32549.0,0.72172632]
[1625746502056,1.09760057,32550.0,32549.0,0.48115088]
[1625746502207,2.46925272,32550.0,32541.0,0.015]
[1625746502354,2.68904272,32550.0,32539.0,0.24057544]
[1625746502504,2.68904272,32550.0,32546.0,4.0678]
[1625746502654,0.51451084,32547.0,32546.0,4.0678]
[1625746502804,0.8579007,32547.0,32546.0,4.0678]
[1625746503255,0.51470976,32547.0,32546.0,4.0678]
[1625746503858,1.20271688,32547.0,32546.0,4.0678]
[1625746504008,1.68386776,32547.0,32546.0,4.0678]
[1625746505358,1.68386776,32547.0,32546.0,3.5675]
[1625746505510,2.71578147,32547.0,32539.0,0.24057544]
[1625746505659,2.71578147,32547.0,32533.0,0.24057544]
[1625746505961,0.48115088,32534.0,32533.0,0.24057544]
[1625746506116,0.81331088,32534.0,32533.0,0.24057544]
[1625746508513,0.48115088,32534.0,32533.0,0.24057544]
[1625746508679,0.1731331,32543.0,32533.0,0.24057544]
[1625746508814,0.1731331,32543.0,32533.0,0.51082544]
[1625746508966,0.51937211,32544.0,32533.0,0.51082544]
[1625746509114,0.52014023,32545.0,32533.0,0.51082544]
[1625746509566,0.17343783,32545.0,32534.0,0.015]
[1625746509866,0.17369806,32546.0,32534.0,0.015]
[1625746510016,0.52089399,32546.0,32545.0,0.24057544]
[1625746510316,2.25474997,32546.0,32544.0,3.7176]
[1625746510464,1.21411628,32545.0,32544.0,3.7176]
[1625746511221,0.17376613,32545.0,32544.0,3.7176]
[1625746511517,0.52116075,32546.0,32544.0,3.7176]
[1625746513018,0.52153944,32545.0,32544.0,3.7176]
[1625746513320,0.52128344,32545.0,32544.0,3.7176]
[1625746513618,1.2161829,32545.0,32544.0,3.7176]
[1625746514069,0.52128344,32545.0,32544.0,3.7176]
[1625746514220,0.52154549,32545.0,32544.0,3.7176]
[1625746514673,0.17390641,32545.0,32544.0,3.7176]
[1625746515722,0.52136878,32545.0,32544.0,3.7176]
[1625746515876,0.52103434,32545.0,32544.0,3.7176]
[1625746516171,1.21568341,32545.0,32544.0,3.7176]
[1625746516472,0.52103434,32545.0,32544.0,3.7176]
[1625746516621,0.52144587,32545.0,32544.0,3.7176]
[1625746517071,0.17387319,32545.0,32544.0,3.7176]
[1625746517447,0.52160157,32545.0,32544.0,3.7176]
[1625746517747,0.17387319,32545.0,32544.0,3.7176]
[1625746517898,0.86952173,32545.0,32544.0,3.7176]